[Event "7th Sharjah Masters 2024"]
[Site "Sharjah"]
[Date "2024.05.20"]
[Round "7.40"]
[White "Kadric, Denis"]
[Black "Cardoso Cardoso, Jose Gabriel"]
[Result "0-1"]
[ECO "B89"]
[WhiteElo "2558"]
[BlackElo "2497"]
[Annotator "TA"]
[PlyCount "60"]
[EventDate "2024.05.13"]
[EventType "swiss"]
[EventCountry "UAE"]
[SourceTitle "playchess.com"]
[Source "ChessBase"]
[SourceQuality "1"]
[TimeControl "5400+30"]

{[%evp 13,60,12,34,27,16,24,21,18,10,-6,-2,-20,-13,-27,41,49,53,53,43,37,71,-14,-8,-26,-18,-28,-24,-24,0,0,0,0,-6,-31,-14,-35,0,0,0,-57,-53,-302,-287,-291,-283,-283,-273,-29989,-29990]} 1. e4 {[%emt 0:00:02]} c5 {[%emt 0:00:12]} 2. Nf3 {[%emt 0:00:05]} d6 {[%emt 0:00:12]} 3. d4 {[%emt 0:00:04]} cxd4 {[%emt 0:00:09]} 4. Nxd4 {[%emt 0:00:02]} Nf6 {[%emt 0:00:11]} 5. Nc3 {[%emt 0:00:02]} Nc6 {[%emt 0:00:12]} 6. Bc4 {[%emt 0:02:01]} e6 {[%emt 0:00:12]} 7. Be3 {[%emt 0:00:21]} Bd7 {[%emt 0:00:24]} 8. Bb3 {[%emt 0:01:53]} Nxd4 {[%emt 0:00:13]} 9. Bxd4 {[%emt 0:06:56]} b5 {[%emt 0:00:34]} 10. a3 {[%emt 0:01:53] The position is equal.} Bc6 {[%emt 0:11:53]} 11. Qd3 {[%emt 0:03:05][%cal Od4f6]} Be7 {[%emt 0:04:07]} 12. O-O-O {[%emt 0:02:15][%cal Od4f6]} O-O {[%emt 0:03:29]} 13. Rhe1 {[%emt 0:18:00]} Qb8 {[%emt 0:13:06] [#]} (13... Rb8 $11) 14. Nd5 $1 $14 {[%emt 0:02:03]} Bxd5 {[%emt 0:01:14]} (14... exd5 $2 15. exd5 Bxd5 (15... Nxd5 $2 16. Qg3 $18) 16. Rxe7 Bxb3 17. Qxb3 $18) 15. exd5 {[%emt 0:00:04]} e5 {[%emt 0:00:15]} 16. f4 {[%emt 0:01:23]} Nd7 {[%emt 0:02:18]} 17. Kb1 {[%emt 0:28:57]} (17. fxe5 $1 $16 {aiming for e6.} dxe5 18. Be3) 17... Bf6 {[%emt 0:02:54]} 18. fxe5 {[%emt 0:01:00]} Bxe5 {[%emt 0:01:50]} 19. c3 {[%emt 0:02:42]} a5 {[%emt 0:04:20]} 20. Qh3 {[%emt 0:03:02]} Qb7 {[%emt 0:03:28]} 21. Re4 {[%emt 0:03:46]} Rfe8 {[%emt 0:11:26]} 22. Bc2 {[%emt 0:06:27][%cal Oe4e5] Strongly threatening Rxe5! A strong pair of Bishops.} g6 {[%emt 0:01:19]} 23. Rf1 {[%emt 0:04:07][%cal Of1f7] Black must now prevent Rxf7!} f5 {[%emt 0:04:23]} 24. Rh4 {[%emt 0:04:25]} Nf6 {[%emt 0:01:30][%cal Oa8c8]} 25. Bxf5 $1 {[%emt 0:02:31]} gxf5 {[%emt 0:00:28]} 26. Rxf5 {[%emt 0:02:48]} (26. Qxf5 $11 Nxd5 (26... Qxd5 $2 27. Qg5+ Kh8 28. Rxf6 $18) (26... Bxd4 27. Rxd4 Rf8 28. Qe6+ Kg7 29. Rd3 $18) 27. Rf3) 26... Bxd4 $15 {[%emt 0:05:36]} (26... Qxd5 27. Qe3 (27. Rxf6 $2 Bxf6 28. Qg3+ Bg5 $19) (27. Bxe5 Rxe5 28. Qg3+ Kh8 $16) 27... Qf7 (27... Qxg2 $2 28. Rg5+ $18) 28. Qg5+ (28. Bxe5 Rxe5 29. Rxe5 dxe5 $11) 28... Qg7 (28... Kf8 29. Rh6 $16) 29. Bxe5 dxe5 30. Qxf6 Qxf6 31. Rxf6 $16) 27. cxd4 $2 {[%emt 0:00:01] [#] Loses the game.} ({White should play} 27. Rxd4 $15 Qe7 28. Rdf4 Qe1+ 29. Ka2) 27... Re1+ $1 $19 {[%emt 0:13:18]} ({Inferior is} 27... Nxd5 28. Qb3 Re3 (28... Re1+ $2 29. Ka2 $18) 29. Rg5+ (29. Qxd5+ Qxd5 30. Rxd5 b4 $16) 29... Kh8 30. Qxd5 Qxd5 31. Rxd5 $16) 28. Ka2 {[%emt 0:00:23] [#]} Qc8 $1 {[%emt 0:00:06]} 29. Qg3+ {[%emt 0:03:08]} (29. Rxf6 $2 {loses.} Qc4+ 30. Qb3 Ra1+ 31. Kxa1 Qxb3 32. Rg4+ Kh8 $19) 29... Kh8 {[%emt 0:00:13] ( -> ...Qc4+)} 30. Qd3 {[%emt 0:00:01] [#]} (30. Rxf6 $2 {is the wrong capture.} Qc4+ 31. Qb3 Ra1+ 32. Kxa1 Qxb3 $19) (30. Qxe1 $19 Qxf5 31. Qe6 Qxd5+ 32. Qxd5 Nxd5 33. Rh6) 30... Qc1 $1 {[%emt 0:00:17] Weighted Error Value: White=0.44/Black=0.11 (very precise) .  Loses game:     	White=1     	---        Mistake:       	White=3     	Black=1      Inaccurate:     	---       	Black=2      OK:         	White=5     	Black=10     Best:        	White=3     	Black=3      Strong:       	White=1     	Black=2      Brilliant:      	White=1     	---} 0-1

[Event "7th Sharjah Masters 2024"]
[Site "Sharjah"]
[Date "2024.05.20"]
[Round "7.41"]
[White "Samant Aditya S"]
[Black "Seemann, Jakub"]
[Result "1/2-1/2"]
[ECO "B12"]
[WhiteElo "2501"]
[BlackElo "2475"]
[Annotator "TA"]
[PlyCount "97"]
[EventDate "2024.05.13"]
[EventType "swiss"]
[EventCountry "UAE"]
[SourceTitle "playchess.com"]
[Source "ChessBase"]
[SourceQuality "1"]
[TimeControl "5400+30"]

{[%evp 16,97,18,6,24,12,32,-1,10,0,2,0,13,-2,19,18,0,0,14,0,0,-10,-25,-34,-44,-39,-43,-23,-20,-23,-4,-25,-15,-25,-22,-22,0,-33,-8,-14,0,-2,-13,-14,0,0,0,0,0,-25,-17,-12,-8,-16,0,-12,-10,-12,0,0,0,0,0,0,0,0,0,0,0,0,0,0,0,0,0,0,0,0,0,0,0,0,0,0]} 1. e4 {[%emt 0:00:02]} c6 {[%emt 0:00:03]} 2. d4 {[%emt 0:01:37]} d5 {[%emt 0:00:04]} 3. e5 {[%emt 0:00:03]} Bf5 {[%emt 0:00:06]} 4. Nf3 {[%emt 0:00:15]} e6 {[%emt 0:00:04]} 5. Be2 {[%emt 0:00:03]} Nd7 {[%emt 0:00:05]} 6. O-O {[%emt 0:00:05]} a5 $1 {[%emt 0:00:02][%mdl 4] is recently more successful than 6...Ne7. B12: Caro-Kann: Advance Variation.} 7. Nc3 {[%emt 0:03:16]} a4 {[%emt 0:05:16]} 8. Rb1 {[%emt 0:01:04]} h6 $146 {[%emt 0:06:05]} ({Predecessor:} 8... b5 9. b3 a3 10. Bd3 Ne7 11. Bg5 Bg6 12. Ne2 Qa5 13. c4 b4 14. Rc1 h6 15. Bxe7 Bxe7 16. Bxg6 fxg6 {1-0 Paravyan,D (2612)-Jakubowski,K (2467) Titled Tuesday intern op 13th Feb Early blitz 2024 (3)}) 9. Bd3 {[%emt 0:06:31]} Ne7 {[%emt 0:00:34]} 10. Ne2 {[%emt 0:09:46]} Qa5 {[%emt 0:14:06]} 11. Ng3 {[%emt 0:20:43]} Bxd3 {[%emt 0:00:35]} 12. Qxd3 {[%emt 0:11:07]} c5 {[%emt 0:00:25]} 13. c3 {[%emt 0:00:53]} Qa6 {[%emt 0:10:59]} 14. Qd1 {[%emt 0:02:56]} g6 {[%emt 0:03:47]} 15. h4 {[%emt 0:03:10]} Nc6 {[%emt 0:10:06]} 16. h5 {[%emt 0:04:44]} g5 {[%emt 0:00:19]} 17. Be3 {[%emt 0:03:24]} a3 {[%emt 0:06:23]} 18. bxa3 {[%emt 0:08:29]} b6 {[%emt 0:01:16]} 19. Rc1 {[%emt 0:04:53]} Qc4 {[%emt 0:10:51]} 20. Qb3 {[%emt 0:07:32]} Qxb3 {[%emt 0:03:27]} 21. axb3 {[%emt 0:00:02]} Rxa3 {[%emt 0:00:07]} 22. b4 {[%emt 0:04:15]} Be7 {[%emt 0:03:16]} 23. bxc5 {[%emt 0:01:27]} bxc5 {[%emt 0:00:16]} 24. Nh2 {[%emt 0:01:51]} Nb6 {[%emt 0:00:52]} 25. Ng4 {[%emt 0:00:41]} Nc4 {[%emt 0:00:35]} (25... cxd4 $5 26. Bxd4 Nc4 $14) 26. Ne2 {[%emt 0:00:44]} Ra2 {[%emt 0:02:20]} 27. Rfe1 {[%emt 0:01:46]} Kf8 {[%emt 0:06:35]} 28. Ra1 {[%emt 0:00:36]} Rxa1 {[%emt 0:00:06]} 29. Rxa1 {[%emt 0:00:01]} Kg7 {[%emt 0:00:14]} 30. Ra6 {[%emt 0:00:48]} Rc8 {[%emt 0:00:07]} 31. g3 {[%emt 0:01:15]} cxd4 {[%emt 0:02:12]} 32. cxd4 {[%emt 0:00:18]} Bd8 {[%emt 0:00:06]} 33. f4 {[%emt 0:01:48]} Nb4 {[%emt 0:04:17]} 34. Ra4 {[%emt 0:00:05]} Nc2 {[%emt 0:01:12]} 35. Bf2 {[%emt 0:00:49]} Rb8 {[%emt 0:00:31]} 36. Kg2 {[%emt 0:00:48]} Rb2 {[%emt 0:00:20]} 37. Ra8 {[%emt 0:00:13]} Be7 {[%emt 0:03:17]} 38. Ra7 {[%emt 0:00:05]} Bb4 {[%emt 0:06:04]} 39. fxg5 {[%emt 0:00:37]} hxg5 {[%emt 0:00:01]} 40. Ra8 {[%emt 0:01:08]} Ne1+ {[%emt 0:02:54]} 41. Bxe1 {[%emt 0:00:22]} Bxe1 {[%emt 0:00:19]} 42. Nf6 {[%emt 0:00:44]} Rxe2+ {[%emt 0:00:13]} 43. Kf1 {[%emt 0:00:04]} Re3 {[%emt 0:00:51]} 44. Rg8+ {[%emt 0:00:20]} Kh6 {[%emt 0:00:01]} 45. Rh8+ {[%emt 0:00:43]} Kg7 {[%emt 0:00:01]} 46. Rg8+ {[%emt 0:00:02]} Kh6 {[%emt 0:00:04]} 47. Rh8+ {[%emt 0:00:07]} Kg7 {[%emt 0:00:05]} 48. Rh7+ {[%emt 0:01:19]} Kf8 {[%emt 0:00:04]} 49. Rh8+ {[%emt 0:00:43]} 1/2-1/2

[Event "7th Sharjah Masters 2024"]
[Site "Sharjah"]
[Date "2024.05.20"]
[Round "7.42"]
[White "Suleymenov, Alisher"]
[Black "Dronavalli, Harika"]
[Result "1-0"]
[ECO "E06"]
[WhiteElo "2501"]
[BlackElo "2504"]
[Annotator "TA"]
[PlyCount "95"]
[EventDate "2024.05.13"]
[EventType "swiss"]
[EventCountry "UAE"]
[SourceTitle "playchess.com"]
[Source "ChessBase"]
[SourceQuality "1"]
[TimeControl "5400+30"]

{[%evp 21,95,14,22,31,30,0,0,0,0,0,0,0,0,0,0,0,0,0,0,0,9,12,18,12,25,26,30,34,33,33,84,87,110,119,127,126,130,149,135,76,220,220,347,348,416,419,394,376,374,383,383,347,563,520,308,258,5274,4913,6121,6556,29962,29966,29980,29981,29981,29982,29982,29983,29985,29986,29986,29987,29986,29983,29983,29984]} 1. d4 {[%emt 1:31:00]} d5 {[%emt 1:31:00]} 2. c4 {[%emt 0:00:30]} e6 {[%emt 0:00:30]} 3. Nf3 {[%emt 0:00:30]} Nf6 {[%emt 0:00:30]} 4. g3 {[%emt 0:00:30]} Be7 {[%emt 0:00:30]} 5. Bg2 {[%emt 0:00:30]} O-O {[%emt 0:00:30]} 6. Nc3 {[%emt 0:00:30]} dxc4 {[%emt 0:00:30]} 7. Ne5 {[%emt 0:00:30]} Nc6 {[%emt 0:00:30]} 8. Bxc6 {[%emt 0:00:30] E06: Closed Catalan: Early deviations.} bxc6 {[%emt 0:00:30]} 9. Nxc6 {[%emt 0:00:30]} Qe8 {[%emt 0:00:30]} 10. Nxe7+ {[%emt 0:00:30]} Qxe7 {[%emt 0:00:30]} 11. Qa4 {[%emt 0:00:30]} Nd5 {[%emt 0:00:30] is currently scoring better than 11...c5.} 12. Qxc4 {[%emt 0:00:30]} a5 {[%emt 0:00:30]} 13. Qc5 {[%emt 0:00:30]} Qxc5 {[%emt 0:00:30]} 14. dxc5 {[%emt 0:00:30]} Nxc3 {[%emt 0:00:30]} 15. bxc3 {[%emt 0:00:30]} e5 {[%emt 0:00:30]} 16. f3 $146 {[%emt 0:00:30]} ({Predecessor:} 16. f4 Re8 17. Kf2 Rb8 18. Rd1 Bg4 19. Rd2 exf4 20. gxf4 Re4 21. e3 Rbe8 22. Rd4 {1-0 Cesar Maestre,B (2357)-Garcia Fernandez,V (2177) ESP-ch U18 Salobrena 2023 (6)}) 16... Be6 {[%emt 0:00:30]} 17. Kf2 {[%emt 0:00:30]} Rfb8 {[%emt 0:00:30]} 18. Rd1 {[%emt 0:00:30]} f6 {[%emt 0:00:30]} 19. g4 {[%emt 0:00:30]} Kf7 {[%emt 0:00:30]} 20. h4 {[%emt 0:00:30]} Ke8 {[%emt 0:00:30]} 21. g5 {[%emt 0:00:30]} Rd8 {[%emt 0:00:30]} 22. Rg1 {[%emt 0:00:30]} Rab8 {[%emt 0:00:30]} 23. h5 {[%emt 0:00:30]} f5 {[%emt 0:00:30]} 24. g6 {[%emt 0:00:30]} h6 {[%emt 0:00:30]} 25. f4 {[%emt 0:00:30]} Rd5 {[%emt 0:00:30]} ({Better is} 25... Rb5 $14) 26. Be3 $16 {[%emt 0:00:30]} Rb2 {[%emt 0:00:30]} 27. Rgb1 {[%emt 0:00:30]} Rc2 {[%emt 0:00:30]} 28. Rc1 {[%emt 0:00:30]} Rb2 {[%emt 0:00:30]} 29. Rab1 {[%emt 0:00:30]} Rxa2 {[%emt 0:00:30]} 30. Ra1 {[%emt 0:00:30]} (30. c4 $142 Rd8 31. c6 (31. fxe5 f4 $11)) 30... Rb2 {[%emt 0:00:30]} (30... Rxa1 $2 31. Rxa1 exf4 32. Bd4 $18) (30... exf4 $16 31. Bd4 (31. Rxa2 fxe3+ 32. Kf3 Rxc5 $16) 31... Rxa1 32. Rxa1 f3 33. Kxf3 (33. exf3 f4 $18) 33... f4 34. Bxg7 (34. Rxa5 Rxh5 35. Kxf4 Rg5 $14) 34... Rxc5) 31. Rxa5 $18 {[%emt 0:00:30]} c6 {[%emt 0:00:30]} (31... Rb8 {was necessary.} 32. Rca1 (32. c4 Rdd8 $18) 32... exf4) 32. Ra6 $18 {[%emt 0:00:30]} Rd7 {[%emt 0:00:30]} 33. Rxc6 {[%emt 0:00:30]} (33. fxe5 Bc4 34. Rxc6 Rxe2+ 35. Kf3 Ra2) 33... Bc4 {[%emt 0:00:30]} 34. Rc8+ {[%emt 0:00:30]} ({Don't do} 34. fxe5 Bxe2 35. Rd6 f4 36. Bxf4 Rc7) 34... Rd8 {[%emt 0:00:30]} 35. Rxd8+ {[%emt 0:00:30]} Kxd8 {[%emt 0:00:30]} 36. Rd1+ {[%emt 0:00:30]} ({Less strong is} 36. fxe5 Bxe2 37. Kg3 Bxh5 $18) 36... Ke7 $2 {[%emt 0:00:30]} (36... Kc7) 37. Rd2 $18 {[%emt 0:00:30]} ({Weaker is} 37. fxe5 Rxe2+ 38. Kf3 Rc2 $16) 37... Rxd2 {[%emt 0:00:30]} 38. Bxd2 {[%emt 0:00:30]} Bd5 $2 {[%emt 0:00:30]} (38... Kd7 39. fxe5 Be6) 39. c4 $18 {[%emt 0:00:30]} Bxc4 {[%emt 0:00:30]} 40. c6 {[%emt 0:00:30]} Kd6 {[%emt 0:00:30]} 41. Bc3 {[%emt 0:00:30]} Kxc6 {[%emt 0:00:30]} 42. Bxe5 {[%emt 0:00:30]} Kd7 {[%emt 0:00:30]} 43. Bxg7 {[%emt 0:00:30]} Ke6 {[%emt 0:00:30]} 44. Bxh6 {[%emt 0:00:30]} Kf6 {[%emt 0:00:30]} 45. Bg5+ {[%emt 0:00:30]} Kg7 {[%emt 0:00:30]} 46. e4 {[%emt 0:00:30]} Be6 {[%emt 0:00:30]} 47. exf5 {[%emt 0:00:30]} Bxf5 {[%emt 0:00:30]} 48. Kg3 {[%emt 0:00:30]} 1-0

[Event "7th Sharjah Masters 2024"]
[Site "Sharjah"]
[Date "2024.05.20"]
[Round "7.43"]
[White "Avila Pavas, Santiago"]
[Black "Klimkowski, Jan"]
[Result "0-1"]
[ECO "C54"]
[WhiteElo "2516"]
[BlackElo "2518"]
[Annotator "RC"]
[PlyCount "101"]
[EventDate "2024.05.13"]
[EventType "swiss"]
[EventCountry "UAE"]
[SourceTitle "playchess.com"]
[Source "ChessBase"]
[SourceQuality "1"]
[TimeControl "5400+30"]

1. e4 {[%emt 1:31:00]} e5 {[%emt 1:31:00]} 2. Nf3 {[%emt 0:00:30]} Nc6 {[%emt 0:00:30]} 3. Bc4 {[%emt 0:00:30]} Nf6 {[%emt 0:00:30]} 4. d3 {[%emt 0:00:30]} Bc5 {[%emt 0:00:30]} 5. c3 {[%emt 0:00:30]} O-O {[%emt 0:00:30]} 6. O-O {[%emt 0:00:30]} d5 {[%emt 0:00:30]} 7. exd5 {[%emt 0:00:30]} Nxd5 {[%emt 0:00:30]} 8. a4 {[%emt 0:00:30]} Bf5 {[%emt 0:00:30]} 9. a5 {[%emt 0:00:30]} a6 {[%emt 0:00:30]} 10. Nbd2 {[%emt 0:00:30]} b5 {[%emt 0:00:30]} 11. axb6 {[%emt 0:00:30]} Nxb6 {[%emt 0:00:30]} 12. Nb3 {[%emt 0:00:30]} Be7 {[%emt 0:00:30]} 13. Bxa6 {[%emt 0:00:30]} Rxa6 {[%emt 0:00:30]} 14. Rxa6 {[%emt 0:00:30]} Bxd3 {[%emt 0:00:30]} 15. Na5 {[%emt 0:00:30]} Bxa6 {[%emt 0:00:30]} 16. Nxc6 {[%emt 0:00:30]} Qe8 {[%emt 0:00:30]} 17. Nxe7+ {[%emt 0:00:30]} Qxe7 {[%emt 0:00:30]} 18. Re1 {[%emt 0:00:30]} Rd8 {[%emt 0:00:30]} 19. Bd2 {[%emt 0:00:30]} f6 {[%emt 0:00:30]} 20. Qc1 {[%emt 0:00:30]} Bb7 {[%emt 0:00:30]} 21. Nxe5 {[%emt 0:00:30]} Rxd2 {[%emt 0:00:30]} 22. Qxd2 {[%emt 0:00:30]} fxe5 {[%emt 0:00:30]} 23. Qe2 {[%emt 0:00:30]} e4 {[%emt 0:00:30]} 24. f3 {[%emt 0:00:30]} Qc5+ {[%emt 0:00:30]} 25. Kh1 {[%emt 0:00:30]} Nd7 {[%emt 0:00:30]} 26. fxe4 {[%emt 0:00:30]} Nf6 {[%emt 0:00:30]} 27. Qd3 {[%emt 0:00:30]} Qe5 {[%emt 0:00:30]} 28. Qg3 {[%emt 0:00:30]} Qxg3 {[%emt 0:00:30]} 29. hxg3 {[%emt 0:00:30]} Bxe4 {[%emt 0:00:30]} 30. b4 {[%emt 0:00:30]} Kf7 {[%emt 0:00:30]} 31. c4 {[%emt 0:00:30]} Ke6 {[%emt 0:00:30]} 32. Rd1 {[%emt 0:00:30]} Nd7 {[%emt 0:00:30]} 33. Rd4 {[%emt 0:00:30]} Bb7 {[%emt 0:00:30]} 34. Kg1 {[%emt 0:00:30]} Ne5 {[%emt 0:00:30]} 35. b5 {[%emt 0:00:30]} Nd7 {[%emt 0:00:30]} 36. Kf2 {[%emt 0:00:30]} h6 {[%emt 0:00:30]} 37. Rd2 {[%emt 0:00:30]} Nc5 {[%emt 0:00:30]} 38. Ke3 {[%emt 0:00:30]} Ne4 {[%emt 0:00:30]} 39. Rd8 {[%emt 0:00:30]} Nd6 {[%emt 0:00:30]} 40. Kd3 {[%emt 0:00:30]} Bxg2 {[%emt 0:00:30]} 41. Rf8 {[%emt 0:00:30]} h5 {[%emt 0:00:30]} 42. Kc3 {[%emt 0:00:30]} Ne4+ {[%emt 0:00:30]} 43. Kb4 {[%emt 0:00:30]} Nxg3 {[%emt 0:00:30]} 44. c5 {[%emt 0:00:30]} Nf5 {[%emt 0:00:30]} 45. c6 {[%emt 0:00:30]} h4 {[%emt 0:00:30]} 46. Re8+ {[%emt 0:00:30]} Ne7 {[%emt 0:00:30]} 47. Rh8 {[%emt 0:00:30]} h3 {[%emt 0:00:30]} 48. Kc5 {[%emt 0:00:30]} g5 {[%emt 0:00:30]} 49. Rh6+ {[%emt 0:00:30]} Kf5 {[%emt 0:00:30]} 50. Rh7 {[%emt 0:00:30]} Kf6 {[%emt 0:00:30]} 51. Kd4 {[%emt 0:00:30]} 0-1